{"text_format":"3","workbook":"xlsx","n_sheets":3,"sheets":["Skifteopgørelse","Aktiver i skifte","Forpligtelser ift. skifte"],"not_rendered":{"defined_names":1},"read":"whole","date_system":"1900"}

{"sheet":"Skifteopgørelse","index":0,"n_rows":45,"n_cols":35,"rows_kept":45,"merged":[[0,1,0,30],[0,31,0,39],[1,1,5,39],[6,1,6,6],[6,7,6,39],[7,1,7,6],[7,7,7,39],[9,1,9,6],[9,7,9,39],[10,1,10,6],[10,7,10,39],[11,1,11,6],[11,7,11,20],[11,21,11,26],[11,27,11,30],[11,31,11,33],[11,34,11,39],[12,1,12,6],[12,7,12,20],[12,21,12,26],[13,1,13,6],[13,7,13,20],[13,21,13,26],[14,1,14,6],[14,7,14,20],[14,21,14,26],[15,1,15,6],[17,1,17,39],[18,1,18,6],[18,7,18,12],[18,13,18,15],[18,16,18,18],[18,19,18,26],[18,27,18,31],[18,32,18,39],[19,1,19,6],[19,7,19,12],[19,13,19,15],[19,16,19,18],[19,19,19,26],[19,27,19,31],[19,32,19,39],[20,1,20,6],[20,7,20,12],[20,13,20,15],[20,16,20,18],[20,19,20,26],[20,27,20,31],[20,32,20,39],[21,1,21,6],[21,7,21,12],[21,13,21,15],[21,16,21,18],[21,19,21,26],[21,27,21,31],[21,32,21,39],[22,1,22,6],[22,7,22,12],[22,13,22,15],[22,16,22,18],[22,19,22,26],[22,27,22,31],[22,32,22,39],[23,1,23,6],[23,7,23,12],[23,13,23,15],[23,16,23,18],[23,19,23,26],[23,27,23,31],[23,32,23,39],[25,1,25,39],[26,1,26,6],[26,7,26,12],[26,13,26,18],[26,19,26,26],[26,27,26,31],[26,32,26,39],[27,1,27,6],[27,7,27,12],[27,13,27,18],[27,19,27,26],[27,27,27,31],[27,32,27,39],[28,1,28,6],[28,7,28,12],[28,13,28,18],[28,19,28,26],[28,27,28,31],[28,32,28,39],[29,1,29,6],[29,7,29,12],[29,13,29,18],[29,19,29,26],[29,27,29,31],[29,32,29,39],[30,1,30,6],[30,7,30,12],[30,13,30,18],[30,19,30,26],[30,27,30,31],[30,32,30,39],[31,1,31,6],[31,7,31,12],[31,13,31,18],[31,19,31,26],[31,27,31,31],[31,32,31,39],[33,1,33,12],[33,14,33,39],[34,1,34,12],[34,14,34,21],[34,22,34,25],[34,26,34,33],[34,34,34,39],[35,2,35,12],[35,14,35,21],[35,22,35,25],[35,26,35,33],[35,34,35,39],[36,2,36,12],[36,14,36,21],[36,22,36,25],[36,26,36,33],[36,34,36,39],[37,2,37,12],[37,14,37,21],[37,22,37,25],[37,26,37,33],[37,34,37,39],[38,2,38,12],[38,14,38,21],[38,22,38,25],[38,26,38,33],[38,34,38,39],[39,2,39,12],[39,14,39,21],[39,22,39,25],[39,26,39,33],[39,34,39,39],[40,2,40,12],[40,14,40,21],[40,22,40,25],[40,26,40,33],[40,34,40,39],[41,2,41,12],[41,14,41,21],[41,22,41,25],[41,26,41,33],[41,34,41,39],[42,2,42,12],[42,14,42,21],[42,22,42,25],[42,26,42,33],[42,34,42,38],[43,2,43,12],[43,14,43,21],[43,22,43,25],[43,26,43,33],[43,34,43,39],[44,2,44,12],[44,14,44,21],[44,22,44,25],[44,26,44,33],[44,34,44,39]]}
[]
[null,"Skifteopgørelse"]
[]
[]
[]
[]
[null,"Navn på bobestyrer(ere)",{"$nulls":5},"Allan Mattsson"]
[null,"Kontaktoplysninger",{"$nulls":5},"4567 Main St Buffalo, NY 98052"]
[]
[null,"Afdødes navn",{"$nulls":5},"August Bergquist"]
[null,"Adresse",{"$nulls":5},"6789 Main St."]
[null,"By",{"$nulls":5},"Buffalo",{"$nulls":13},"Region",{"$nulls":5},"NY",{"$nulls":3},"Postnummer",null,null,98052]
[null,"CPR-NR.",{"$nulls":5},"AAA-GG-SSSS",{"$nulls":13},"Beskæftigelse",{"$nulls":5},"Tandlæge"]
[null,"Fødselsdato",{"$nulls":5},"1965-12-08",{"$nulls":13},"Fødested",{"$nulls":5},"NY"]
[null,"Dødsdato",{"$nulls":5},{"$f":"TODAY()-3","v":"2022-05-15"},{"$nulls":13},"Stedet for dødsfaldet",{"$nulls":5},"NY"]
[null,"Yderligere oplysninger"]
[]
[null,"  Ægtefælle, børn og andre pårørende"]
[null,"Navn",{"$nulls":5},"Slægtskab",{"$nulls":5},"Økonomisk afhængige",null,null,"Alder",null,null,"Adresse",{"$nulls":7},"Telefonnummer",{"$nulls":4},"Mail"]
[null,"Mirjam Nilsson",{"$nulls":5},"Personlig repræsentant",{"$nulls":5},"Nej",null,null,30]
[null,"Victoria Lindqvist",{"$nulls":5},"Ægtefælle",{"$nulls":5},"Ja",null,null,35]
[null,"Alexander Martensson",{"$nulls":5},"Barn",{"$nulls":5},"Ja",null,null,12]
[]
[]
[]
[null,"Professionelle rådgivere"]
[null,"Rådgivertype",{"$nulls":5},"Kontaktperson",{"$nulls":5},"Firma",{"$nulls":5},"Adresse",{"$nulls":7},"Telefonnummer",{"$nulls":4},"Mail"]
[null,"Revisor"]
[null,"Advokat/notar"]
[null,"Andet"]
[]
[]
[]
[null,"  Tjekliste for skifte",{"$nulls":12},"  Skifteopgørelser"]
[null,"    Tjeklisteelementer",{"$nulls":12},"Aktiver i skifte",{"$nulls":7},"Værdi(kr. )",{"$nulls":3},"Forpligtelser ift. skifte",{"$nulls":7},"Værdi(kr. )"]
[null,"✔","Sidste vilje, testamente eller andre dokumenter",{"$nulls":11},{"$f":"'Aktiver i skifte'!B12","v":"Bankkonti"},{"$nulls":7},{"$f":"'Aktiver i skifte'!G20","v":{"v":0,"d":"kr. 0.00"}},{"$nulls":3},{"$f":"'Forpligtelser ift. skifte'!B11","v":"Realkreditlån"},{"$nulls":7},{"$f":"'Forpligtelser ift. skifte'!G18","v":{"v":0,"d":"kr. 0.00"}}]
[null,"✔","Aftale og nøgler for bankboks",{"$nulls":11},{"$f":"'Aktiver i skifte'!B22","v":"Personlige investeringer"},{"$nulls":7},{"$f":"'Aktiver i skifte'!G30","v":{"v":0,"d":"kr. 0.00"}},{"$nulls":3},{"$f":"'Forpligtelser ift. skifte'!B21","v":"Personlige lån og kreditter"},{"$nulls":7},{"$f":"'Forpligtelser ift. skifte'!G28","v":{"v":0,"d":"kr. 0.00"}}]
[null,"✖","Adgangskoder til computere og onlinekonti",{"$nulls":11},{"$f":"'Aktiver i skifte'!B32","v":"Forretningsaktiver"},{"$nulls":7},{"$f":"'Aktiver i skifte'!G40","v":{"v":0,"d":"kr. 0.00"}},{"$nulls":3},{"$f":"'Forpligtelser ift. skifte'!B31","v":"Forretningsaktiver"},{"$nulls":7},{"$f":"'Forpligtelser ift. skifte'!G38","v":{"v":0,"d":"kr. 0.00"}}]
[null,"✔","Aftaler om særeje",{"$nulls":11},{"$f":"'Aktiver i skifte'!B42","v":"Fast ejendom"},{"$nulls":7},{"$f":"'Aktiver i skifte'!G50","v":{"v":0,"d":"kr. 0.00"}},{"$nulls":3},{"$f":"'Forpligtelser ift. skifte'!B41","v":"Kreditkort"},{"$nulls":7},{"$f":"'Forpligtelser ift. skifte'!G48","v":{"v":0,"d":"kr. 0.00"}}]
[null,"✔","Livsforsikring, sundheds-/ulykkes- og forsikringspolicer",{"$nulls":11},{"$f":"'Aktiver i skifte'!B52","v":"Pensionsordninger"},{"$nulls":7},{"$f":"'Aktiver i skifte'!G60","v":{"v":0,"d":"kr. 0.00"}},{"$nulls":3},{"$f":"'Forpligtelser ift. skifte'!B51","v":"Andre forpligtelser"},{"$nulls":7},{"$f":"'Forpligtelser ift. skifte'!G58","v":{"v":0,"d":"kr. 0.00"}}]
[null,"✔","Regnskabsopgørelser",{"$nulls":11},{"$f":"'Aktiver i skifte'!B62","v":"Forsikring"},{"$nulls":7},{"$f":"'Aktiver i skifte'!G70","v":{"v":0,"d":"kr. 0.00"}}]
[null,"✔","Selvangivelser for de seneste tre år",{"$nulls":11},{"$f":"'Aktiver i skifte'!B72","v":"Private lån og realkreditlån"},{"$nulls":7},{"$f":"'Aktiver i skifte'!G80","v":{"v":0,"d":"kr. 0.00"}}]
[null,"✔","Fødsels- og dødscertifikat",{"$nulls":11},{"$f":"'Aktiver i skifte'!B82","v":"Renter fra andre ejendomme og fuldmagtshavere"},{"$nulls":7},{"$f":"'Aktiver i skifte'!G90","v":{"v":0,"d":"kr. 0.00"}}]
[null,"✖","Juridiske dokumenter, realkreditlån og leasingopgørelser",{"$nulls":11},{"$f":"'Aktiver i skifte'!B92","v":"Personlige effekter og andre aktiver"},{"$nulls":7},{"$f":"'Aktiver i skifte'!G100","v":{"v":0,"d":"kr. 0.00"}}]
[null,"☐","Ubetalte regninger og notater",{"$nulls":11},"Aktiver i alt",{"$nulls":7},{"$f":"'Aktiver i skifte'!G10","v":{"v":0,"d":"kr. 0.00"}},{"$nulls":3},"Forpligtelser i alt",{"$nulls":7},{"$f":"SUM(AI36:AN44)","v":{"v":0,"d":"kr. 0.00"}}]

{"sheet":"Aktiver i skifte","index":1,"n_rows":100,"n_cols":8,"rows_kept":100,"merged":[[0,1,0,7],[1,1,5,7],[6,1,7,7],[11,1,11,7],[12,1,12,7],[21,1,21,7],[22,1,22,7],[31,1,31,7],[32,1,32,7],[41,1,41,7],[42,1,42,7],[51,1,51,7],[52,1,52,7],[61,1,61,7],[62,1,62,7],[71,1,71,7],[72,1,72,7],[81,1,81,7],[82,1,82,7],[91,1,91,7],[92,1,92,7]]}
[]
[null,"Aktiver i skifte"]
[]
[]
[]
[]
[null,"Brug dette regneark til at oprette en oversigt over skifteaktiverne. Du skal bestemme markedsværdien for hvert aktiv på datoen for dødsfaldet. Gennemse alle poster, herunder årsregnskaber, forsikringspolicer og selvangivelser for at se markedsværdierne. Det kan også være nødvendigt at få en vurdering af personlige ejendele (dvs. kunst, samlinger, antikviteter osv.). Sørg for også at medtage alle udenlandske aktiver i opgørelsen, f.eks. fast ejendom, aktier eller udenlandske forretningsinteresser. Du kan få professionel hjælp til at få en nøjagtig markedsværdi for udenlandske aktiver."]
[]
[]
[null,"Aktiver i alt",{"$nulls":4},{"$f":"tblBankKonti[[#Totals],[Saldo ]]+tblPersonligeInvesteringer[[#Totals],[Markedsværdi]]+tblVirksomhedsAktiver[[#Totals],[Værdi ]]+tblFastEjendom[[#Totals],[Markedspris]]+tblPensionsordninger[[#Totals],[Værdi ]]+tblForsikring[[#Totals],[Kontantværdi ]]+tblRealkreditlån[[#Totals],[Skyldig saldo ]]+tblTrusts[[#Totals],[Fordelingsbeløb]]+tblAndreAktiver[[#Totals],[Værdi ]]","v":{"v":0,"d":"kr. 0.00"}}]
[]
[null,"Bankkonti"]
[null,"Oplist alle bankkonti, herunder kontanter, rejsechecks, overførselsordrer og konti med banker, sparekasser, realkreditinstitutter osv. Medtag alle navne, der er angivet på kontoen, og den faktiske kontantværdi, som refererer til den nøjagtige dollar og ændringsbeløbet på tidspunktet for dødsfaldet."]
[null,"Pengeinstitut ","Adresse","Telefon","Kontonummer","Kontotype","Saldo ","Noter"]
[]
[]
[]
[]
[]
[null,"Total",{"$nulls":4},{"$f":"SUBTOTAL(109,tblBankKonti[[Saldo ]])","v":{"v":0,"d":"kr. 0.00"}}]
[]
[null,"Personlige investeringer"]
[null,"Oplist konti, margenkonti, skattefri opsparingskonti, registrerede pensionsopsparingsplaner, registrerede pensionsmidler, låste pensionsmidler, nedskrevne midler til tilbagetrækning af indkomst, registrerede uddannelsesspareplaner, annuiteter osv."]
[null,"Firma","Adresse","Telefon","Kontonummer","Modtager","Markedsværdi","Bemærkninger"]
[]
[]
[]
[]
[]
[null,"Total",{"$nulls":4},{"$f":"SUBTOTAL(109,tblPersonligeInvesteringer[Markedsværdi])","v":{"v":0,"d":"kr. 0.00"}}]
[]
[null,"Forretningsaktiver"]
[null,"Angiv alle forretningsinteresser, herunder enkeltmandsvirksomheder, professionelle praksisser, virksomheder, partnerskaber, aktieselskaber og partnerskaber, joint-ventures og andre ikke-offentligt handlede forretningsenheder. "]
[null,"Virksomhedsnavn","Adresse","Telefon","Kontakt","Type","Værdi ","Bemærkninger"]
[]
[]
[]
[]
[]
[null,"Total",{"$nulls":4},{"$f":"SUBTOTAL(109,tblVirksomhedsAktiver[[Værdi ]])","v":{"v":0,"d":"kr. 0.00"}}]
[]
[null,"Fast ejendom"]
[null,"Angiv enhver fast ejendom, som afdøde og/eller afdødes ægtefælle/partner er ejer af, fælles ejer af eller på nogen måde har interesse i, herunder ejendom, der er købt i fritidsudviklinger og time-shares. Hent kopier af juridiske dokumenter. Angiv en beskrivelse af den fast ejendom med dens fysiske adresse. Angiv ejendommens reelle markedsværdi baseret på den seneste vurdering, som den er foretaget af skattevurderingen."]
[null,"Adresse","Titel","Telefon","Kontakt","Købspris","Markedspris","Bemærkninger"]
[]
[]
[]
[]
[]
[null,"Total",{"$nulls":3},{"$f":"SUBTOTAL(109,tblFastEjendom[Købspris])","v":{"v":0,"d":"kr. 0.00"}},{"$f":"SUBTOTAL(109,tblFastEjendom[Markedspris])","v":{"v":0,"d":"kr. 0.00"}}]
[]
[null,"Pensionsordninger"]
[null,"Angiv definerede fordele, pengetransaktioner eller særlige bidrag, pensionsopsparinger osv."]
[null,"Firma","Telefon","Abonnementstype","Modtager","Mail","Værdi ","Bemærkninger"]
[]
[]
[]
[]
[]
[null,"Total",{"$nulls":4},{"$f":"SUBTOTAL(109,tblPensionsordninger[[Værdi ]])","v":{"v":0,"d":"kr. 0.00"}}]
[]
[null,"Forsikring"]
[null,"Inkluder særeje for nulevende, forsikringspolicer med navngivne modtagere og investeringskonti, der blev overført ved dødsfaldet, som aktiver, der ikke kan skiftes til. Hvis retten forespørger om disse aktiver, kan eksekutoren nemt henvise til listen over aktiver, der ikke er skifteaktiver, og forklare deres fravær fra skifteopgørelsen."]
[null,"Udsteder","Policenummer","Telefon","Modtager","Pålydende værdi ","Kontantværdi ","Bemærkninger"]
[]
[]
[]
[]
[]
[null,"Total",{"$nulls":3},{"$f":"SUBTOTAL(109,tblForsikring[[Pålydende værdi ]])","v":{"v":0,"d":"kr. 0.00"}},{"$f":"SUBTOTAL(109,tblForsikring[[Kontantværdi ]])","v":{"v":0,"d":"kr. 0.00"}}]
[]
[null,"Private lån og realkreditlån"]
[null,"Angiv private lån og realkreditlån, hvor afdøde var udlåner."]
[null,"Navn på låner","Adresse","Telefon","Type","Oprindeligt beløb","Skyldig saldo ","Bemærkninger"]
[]
[]
[]
[]
[]
[null,"Total",{"$nulls":3},{"$f":"SUBTOTAL(109,tblRealkreditlån[Oprindeligt beløb])","v":{"v":0,"d":"kr. 0.00"}},{"$f":"SUBTOTAL(109,tblRealkreditlån[[Skyldig saldo ]])","v":{"v":0,"d":"kr. 0.00"}}]
[]
[null,"Renter fra andre ejendomme og fuldmagtshavere"]
[null,"Angiv aktiver, der er registreret i den afdøde persons navn på vegne af andre (f.eks. aktiver, der opbevares af afdøde som fuldmagtshaver eller aktiver, der opbevares under en fuldmagt)."]
[null,"Navn på ejendom/fuldmagtshaver","Navn på eksekutor/fuldmagtshaver","Telefon","Adresse","Mail","Fordelingsbeløb","Bemærkninger"]
[]
[]
[]
[]
[]
[null,"Total",{"$nulls":4},{"$f":"SUBTOTAL(109,tblTrusts[Fordelingsbeløb])","v":{"v":0,"d":"kr. 0.00"}}]
[]
[null,"Personlige effekter og andre aktiver"]
[null,"Oplist alle personlige genstande f.eks. biler, smykker, kunst, antikviteter eller møbler. Medtag genstande, der kan være blevet opbevaret i en bankboks eller en opbevaringsboks."]
[null,"Beskrivelse af genstand","Placering","Telefon","Kontakt","Modtager","Værdi ","Noter"]
[]
[]
[]
[]
[]
[null,"Total",{"$nulls":4},{"$f":"SUBTOTAL(109,tblAndreAktiver[[Værdi ]])","v":{"v":0,"d":"kr. 0.00"}}]

{"sheet":"Forpligtelser ift. skifte","index":2,"n_rows":58,"n_cols":8,"rows_kept":58,"merged":[[0,1,0,7],[1,1,5,7],[6,1,6,7],[10,1,10,7],[20,1,20,7],[30,1,30,7],[40,1,40,7],[50,1,50,7]]}
[]
[null,"Forpligtelser ift. skifte"]
[]
[]
[]
[]
[null,"Brug dette regneark til at registrere oplysninger om ejendommens ansvar, både nationale og udenlandske. Du skal have en vurdering af ethvert ansvar på datoen for dødsfaldet."]
[]
[null,"Aktiver i alt",{"$nulls":4},{"$f":"SUM(G18,G28,G38,G48,G58)","v":{"v":0,"d":"kr. 0.00"}}]
[]
[null,"Realkreditlån"]
[null,"Pengeinstitut ","Adresse","Telefon","Titel","Kontonummer","Saldo ","Noter"]
[]
[]
[]
[]
[]
[null,"Total",{"$nulls":4},{"$f":"SUBTOTAL(109,tblBankKonti2[[Saldo ]])","v":{"v":0,"d":"kr. 0.00"}}]
[]
[]
[null,"Personlige lån og kreditter"]
[null,"Pengeinstitut","Adresse","Telefon"," Kontonummer","Type","Saldo ","Bemærkninger"]
[]
[]
[]
[]
[]
[null,"Total",{"$nulls":4},{"$f":"SUBTOTAL(109,tblPersonligeInvesteringer3[[Saldo ]])","v":{"v":0,"d":"kr. 0.00"}}]
[]
[]
[null,"Forretningsaktiver"]
[null,"Virksomhedsnavn","Adresse"," Telefon"," Kontakt","Type","Værdi ","Bemærkninger"]
[]
[]
[]
[]
[]
[null,"Total",{"$nulls":4},{"$f":"SUBTOTAL(109,tblVirksomhedsAktiver4[[Værdi ]])","v":{"v":0,"d":"kr. 0.00"}}]
[]
[]
[null,"Kreditkort"]
[null,"Kreditkortselskab","Virksomhedsadresse","Telefon","Kortnummer","Udløbsdato ","Saldo ","Bemærkninger"]
[]
[]
[]
[]
[]
[null,"Total",{"$nulls":4},{"$f":"SUBTOTAL(109,tblFastEjendom5[[Saldo ]])","v":{"v":0,"d":"kr. 0.00"}}]
[]
[]
[null,"Andre forpligtelser"]
[null,"Beskrivelse af genstand","Placering","Telefon","Kontakt","Modtager","Værdi ","Noter"]
[]
[]
[]
[]
[]
[null,"Total",{"$nulls":4},{"$f":"SUBTOTAL(109,tblPensionsordning6[[Værdi ]])","v":{"v":0,"d":"kr. 0.00"}}]